[Event "Early-Titled-Tuesday-Blitz-May-14-2024"]
[Site "Chess.com"]
[Date "2024.05.14"]
[Round "6"]
[White "BillCoe"]
[Black "toninhojit"]
[Result "0-1"]
[WhiteElo "2189"]
[BlackElo "2564"]
[TimeControl "180+1"]
[EndTime "9:09:30 PDT"]
[Termination "toninhojit won by resignation"]

1. e4 {[%clk 0:03:00.9]} 1... g6 {[%clk 0:02:55.6]} 2. d4 {[%clk 0:02:59.8]}
2... Bg7 {[%clk 0:02:55.3]} 3. Nc3 {[%clk 0:02:59.1]} 3... d6 {[%clk 0:02:55.9]}
4. h3 {[%clk 0:02:58.3]} 4... Nf6 {[%clk 0:02:52.2]} 5. Nf3 {[%clk 0:02:58.4]}
5... O-O {[%clk 0:02:52.1]} 6. Be2 {[%clk 0:02:58.6]} 6... a6 {[%clk 0:02:43.5]}
7. a4 {[%clk 0:02:56.8]} 7... b6 {[%clk 0:02:44.1]} 8. O-O {[%clk 0:02:52]} 8...
Bb7 {[%clk 0:02:43.9]} 9. Qd3 {[%clk 0:02:47.4]} 9... c5 {[%clk 0:02:39.4]} 10.
Rd1 {[%clk 0:02:31.9]} 10... cxd4 {[%clk 0:02:39.7]} 11. Nxd4 {[%clk 0:02:31.5]}
11... Nc6 {[%clk 0:02:35.7]} 12. Nxc6 {[%clk 0:02:21.3]} 12... Bxc6 {[%clk
0:02:36.6]} 13. Nd5 {[%clk 0:02:21.1]} 13... Nxd5 {[%clk 0:02:25.3]} 14. exd5
{[%clk 0:02:22]} 14... Bd7 {[%clk 0:02:26.1]} 15. c3 {[%clk 0:02:03.2]} 15... b5
{[%clk 0:02:22.8]} 16. axb5 {[%clk 0:02:00.4]} 16... axb5 {[%clk 0:02:23]} 17.
Rxa8 {[%clk 0:02:00.1]} 17... Qxa8 {[%clk 0:02:23.9]} 18. Qe3 {[%clk 0:01:56]}
18... Bf6 {[%clk 0:02:20.1]} 19. g4 {[%clk 0:01:51.4]} 19... Qb7 {[%clk
0:02:06.5]} 20. Qf4 {[%clk 0:01:22.1]} 20... Be5 {[%clk 0:02:00.2]} 21. Qb4
{[%clk 0:01:17.3]} 21... Rb8 {[%clk 0:01:57]} 22. Bf4 {[%clk 0:01:12.5]} 22...
Bxf4 {[%clk 0:01:53.8]} 23. Qxf4 {[%clk 0:01:13.4]} 23... b4 {[%clk 0:01:54.5]}
24. Qe3 {[%clk 0:01:06.7]} 24... bxc3 {[%clk 0:01:47.5]} 25. bxc3 {[%clk
0:01:07.6]} 25... Qb2 {[%clk 0:01:08.8]} 26. Bf1 {[%clk 0:00:33.9]} 26... Qc2
{[%clk 0:00:54.7]} 27. Rc1 {[%clk 0:00:30.4]} 27... Qb2 {[%clk 0:00:52.6]} 28.
c4 {[%clk 0:00:29.8]} 28... Re8 {[%clk 0:00:47.6]} 29. Qc3 {[%clk 0:00:29.1]}
29... Qb6 {[%clk 0:00:46.6]} 30. c5 {[%clk 0:00:27.5]} 30... dxc5 {[%clk
0:00:45.3]} 31. Qxc5 {[%clk 0:00:28.4]} 31... Qf6 {[%clk 0:00:45.7]} 32. Qc3
{[%clk 0:00:25.4]} 32... Qf4 {[%clk 0:00:44.9]} 33. Qe3 {[%clk 0:00:21.7]} 33...
Qd6 {[%clk 0:00:42.6]} 34. Bg2 {[%clk 0:00:19.1]} 34... Rc8 {[%clk 0:00:26.6]}
35. Rxc8+ {[%clk 0:00:17.8]} 35... Bxc8 {[%clk 0:00:27.5]} 36. Qe4 {[%clk
0:00:15.2]} 36... Bd7 {[%clk 0:00:26.1]} 37. Qe3 {[%clk 0:00:14.9]} 37... Kg7
{[%clk 0:00:26.3]} 38. Qd4+ {[%clk 0:00:14.5]} 38... Qf6 {[%clk 0:00:26.1]} 39.
Qxf6+ {[%clk 0:00:14]} 39... Kxf6 {[%clk 0:00:27]} 40. Kf1 {[%clk 0:00:13.5]}
40... Ke5 {[%clk 0:00:27.2]} 41. Ke2 {[%clk 0:00:14.1]} 41... g5 {[%clk
0:00:27.1]} 42. Kd3 {[%clk 0:00:13.9]} 42... Bb5+ {[%clk 0:00:26.4]} 43. Kc3
{[%clk 0:00:13.5]} 43... Kd6 {[%clk 0:00:22.1]} 44. Kd4 {[%clk 0:00:13.3]} 44...
Ba6 {[%clk 0:00:22.7]} 45. Ke4 {[%clk 0:00:12.3]} 45... Bc8 {[%clk 0:00:20.3]}
46. f4 {[%clk 0:00:11.3]} 46... gxf4 {[%clk 0:00:17.3]} 47. Kxf4 {[%clk
0:00:10.2]} 47... Bb7 {[%clk 0:00:18.1]} 48. Kf5 {[%clk 0:00:07.3]} 48... Bxd5
{[%clk 0:00:18.1]} 49. Bf1 {[%clk 0:00:07.8]} 49... h6 {[%clk 0:00:16.9]} 50. h4
{[%clk 0:00:07.9]} 50... Be6+ {[%clk 0:00:17.3]} 51. Kf4 {[%clk 0:00:07.6]}
51... Bd7 {[%clk 0:00:17.9]} 52. g5 {[%clk 0:00:07.7]} 52... e5+ {[%clk
0:00:18.5]} 53. Kg3 {[%clk 0:00:05.1]} 53... hxg5 {[%clk 0:00:19.2]} 54. h5
{[%clk 0:00:05.3]} 54... Ke7 {[%clk 0:00:17.8]} 55. Bd3 {[%clk 0:00:02.7]} 55...
f5 {[%clk 0:00:18.1]} 56. h6 {[%clk 0:00:01.9]} 56... Kf6 {[%clk 0:00:17.9]} 57.
Bc4 {[%clk 0:00:01.4]} 57... Kg6 {[%clk 0:00:16.8]} 58. h7 {[%clk 0:00:01.6]}
58... Kxh7 {[%clk 0:00:16.9]} 0-1

[Event "Early-Titled-Tuesday-Blitz-May-14-2024"]
[Site "Chess.com"]
[Date "2024.05.14"]
[Round "6"]
[White "sergeikim"]
[Black "Quattroporte300"]
[Result "0-1"]
[WhiteElo "2618"]
[BlackElo "2410"]
[TimeControl "180+1"]
[EndTime "9:09:32 PDT"]
[Termination "Quattroporte300 won by resignation"]

1. d4 {[%clk 0:03:00.9]} 1... d5 {[%clk 0:02:55.9]} 2. c4 {[%clk 0:03:00.8]}
2... e6 {[%clk 0:02:54.1]} 3. Nc3 {[%clk 0:02:59.9]} 3... Bb4 {[%clk 0:02:53.3]}
4. Nf3 {[%clk 0:02:59.2]} 4... Ne7 {[%clk 0:02:50.1]} 5. e3 {[%clk 0:02:51.6]}
5... O-O {[%clk 0:02:49.2]} 6. Bd3 {[%clk 0:02:51.5]} 6... c5 {[%clk 0:02:39]}
7. a3 {[%clk 0:02:47.1]} 7... Bxc3+ {[%clk 0:02:37.8]} 8. bxc3 {[%clk
0:02:47.3]} 8... h6 {[%clk 0:02:34.6]} 9. O-O {[%clk 0:02:42.9]} 9... b6 {[%clk
0:02:33.8]} 10. Ne5 {[%clk 0:02:41.3]} 10... Nd7 {[%clk 0:02:28.1]} 11. f4
{[%clk 0:02:37.1]} 11... f6 {[%clk 0:02:25.3]} 12. Nxd7 {[%clk 0:02:22.4]} 12...
Qxd7 {[%clk 0:02:22.3]} 13. cxd5 {[%clk 0:02:21.2]} 13... exd5 {[%clk
0:02:19.2]} 14. Qh5 {[%clk 0:01:58.9]} 14... c4 {[%clk 0:02:09.8]} 15. Bc2
{[%clk 0:01:54.2]} 15... f5 {[%clk 0:02:09.8]} 16. a4 {[%clk 0:01:49.7]} 16...
a5 {[%clk 0:02:08.4]} 17. Ba3 {[%clk 0:01:44.6]} 17... Rf6 {[%clk 0:02:08.4]}
18. Rf3 {[%clk 0:01:40.2]} 18... Kh7 {[%clk 0:01:58.7]} 19. Rg3 {[%clk
0:01:39.7]} 19... Nc6 {[%clk 0:01:35.1]} 20. Rb1 {[%clk 0:01:26.8]} 20... Rb8
{[%clk 0:01:33.2]} 21. Rb5 {[%clk 0:01:21.8]} 21... Qe6 {[%clk 0:01:26.2]} 22.
Rg5 {[%clk 0:01:06.7]} 22... Bd7 {[%clk 0:01:14.4]} 23. Rg3 {[%clk 0:01:05.8]}
23... Nd8 {[%clk 0:00:57.2]} 24. Rb1 {[%clk 0:01:00]} 24... Nf7 {[%clk 0:00:49]}
25. Rh3 {[%clk 0:00:55.9]} 25... Nd6 {[%clk 0:00:45.6]} 26. g4 {[%clk
0:00:48.7]} 26... Ne4 {[%clk 0:00:30.2]} 27. g5 {[%clk 0:00:42.5]} 27... Rg6
{[%clk 0:00:27.4]} 28. Bb2 {[%clk 0:00:39.3]} 28... Nxg5 {[%clk 0:00:23.9]} 29.
Rg3 {[%clk 0:00:32.5]} 29... Ne4 {[%clk 0:00:20.6]} 30. Rxg6 {[%clk 0:00:31.1]}
30... Qxg6+ {[%clk 0:00:20.7]} 31. Qxg6+ {[%clk 0:00:32]} 31... Kxg6 {[%clk
0:00:21.4]} 32. Kg2 {[%clk 0:00:28.9]} 32... Kf6 {[%clk 0:00:21.7]} 33. Kf3
{[%clk 0:00:29.1]} 33... g5 {[%clk 0:00:21.6]} 34. fxg5+ {[%clk 0:00:28.8]}
34... hxg5 {[%clk 0:00:22.5]} 35. h3 {[%clk 0:00:28]} 35... Rh8 {[%clk
0:00:21.9]} 36. Kg2 {[%clk 0:00:27.3]} 36... f4 {[%clk 0:00:22.2]} 37. exf4
{[%clk 0:00:26.7]} 37... Bxh3+ {[%clk 0:00:21.7]} 38. Kg1 {[%clk 0:00:24.8]}
38... gxf4 {[%clk 0:00:21.5]} 39. Bc1 {[%clk 0:00:25]} 39... Kf5 {[%clk
0:00:17.8]} 40. Rxb6 {[%clk 0:00:24]} 40... Rg8+ {[%clk 0:00:18.3]} 41. Kh1
{[%clk 0:00:20.5]} 41... Bg2+ {[%clk 0:00:18.2]} 42. Kh2 {[%clk 0:00:20.2]}
42... Bf1 {[%clk 0:00:18]} 43. Bxe4+ {[%clk 0:00:17]} 43... dxe4 {[%clk
0:00:14.8]} 44. Rb7 {[%clk 0:00:17.1]} 44... Kg4 {[%clk 0:00:12.3]} 45. Rh7
{[%clk 0:00:15.5]} 45... Kf3 {[%clk 0:00:12.1]} 46. Rh4 {[%clk 0:00:15.2]} 46...
e3 {[%clk 0:00:10.7]} 47. Kh1 {[%clk 0:00:14.1]} 47... Bg2+ {[%clk 0:00:10.4]}
48. Kh2 {[%clk 0:00:14.1]} 48... Bf1 {[%clk 0:00:10.5]} 49. Kh1 {[%clk
0:00:14.2]} 49... Bd3 {[%clk 0:00:11]} 50. Rh3+ {[%clk 0:00:13.5]} 50... Ke4
{[%clk 0:00:10.6]} 51. Rh4 {[%clk 0:00:13.6]} 51... Rg7 {[%clk 0:00:09.3]} 52.
Kh2 {[%clk 0:00:13.7]} 52... Rb7 {[%clk 0:00:09.6]} 53. Bxe3 {[%clk 0:00:11.8]}
53... Kxe3 {[%clk 0:00:09.5]} 54. d5 {[%clk 0:00:12.7]} 54... Rd7 {[%clk
0:00:09.2]} 55. Rh5 {[%clk 0:00:12.3]} 55... f3 {[%clk 0:00:09.8]} 56. Kg3
{[%clk 0:00:12]} 56... Rg7+ {[%clk 0:00:09.3]} 57. Kh4 {[%clk 0:00:10.8]} 57...
f2 {[%clk 0:00:09.6]} 58. Re5+ {[%clk 0:00:10.7]} 58... Be4 {[%clk 0:00:10.2]}
0-1

[Event "Early-Titled-Tuesday-Blitz-May-14-2024"]
[Site "Chess.com"]
[Date "2024.05.14"]
[Round "6"]
[White "Sofia_Blokhin"]
[Black "twitchTriniCupid"]
[Result "1/2-1/2"]
[WhiteElo "2269"]
[BlackElo "2410"]
[TimeControl "180+1"]
[EndTime "9:09:40 PDT"]
[Termination "Game drawn by repetition"]

1. d4 {[%clk 0:03:00.9]} 1... Nf6 {[%clk 0:02:59.3]} 2. c4 {[%clk 0:02:59.6]}
2... e6 {[%clk 0:02:56.6]} 3. Nc3 {[%clk 0:02:59.3]} 3... Bb4 {[%clk 0:02:56.9]}
4. e3 {[%clk 0:02:59.7]} 4... O-O {[%clk 0:02:56.3]} 5. Nf3 {[%clk 0:02:57.6]}
5... b6 {[%clk 0:02:52.8]} 6. Bd3 {[%clk 0:02:57.7]} 6... Bb7 {[%clk 0:02:52.9]}
7. O-O {[%clk 0:02:57.4]} 7... Re8 {[%clk 0:02:50.9]} 8. Qc2 {[%clk 0:02:47.5]}
8... c5 {[%clk 0:02:46.4]} 9. a3 {[%clk 0:02:43.2]} 9... Bxc3 {[%clk 0:02:44.6]}
10. bxc3 {[%clk 0:02:43.3]} 10... d6 {[%clk 0:02:44]} 11. e4 {[%clk 0:02:42]}
11... Nbd7 {[%clk 0:02:44]} 12. e5 {[%clk 0:02:29.8]} 12... dxe5 {[%clk
0:02:36.8]} 13. dxe5 {[%clk 0:02:29.4]} 13... Ng4 {[%clk 0:02:27.3]} 14. Bxh7+
{[%clk 0:02:27.2]} 14... Kh8 {[%clk 0:02:27.1]} 15. Ng5 {[%clk 0:02:21.5]} 15...
Qe7 {[%clk 0:01:59.4]} 16. Be4 {[%clk 0:01:59.3]} 16... Nf8 {[%clk 0:01:54.6]}
17. f4 {[%clk 0:01:21.9]} 17... g6 {[%clk 0:01:47.7]} 18. Rf3 {[%clk 0:01:12.2]}
18... Nh6 {[%clk 0:01:47]} 19. Rh3 {[%clk 0:01:11.6]} 19... Kg7 {[%clk
0:01:46.7]} 20. Rxh6 {[%clk 0:00:40.5]} 20... Kxh6 {[%clk 0:01:42.2]} 21. f5
{[%clk 0:00:40.8]} 21... exf5 {[%clk 0:01:33.7]} 22. Nxf7+ {[%clk 0:00:18.1]}
22... Kg7 {[%clk 0:01:33.4]} 23. Bxb7 {[%clk 0:00:13.5]} 23... Qxf7 {[%clk
0:01:12.4]} 24. Bxa8 {[%clk 0:00:12.7]} 24... Rxa8 {[%clk 0:01:12.1]} 25. Bg5
{[%clk 0:00:12.2]} 25... Qxc4 {[%clk 0:01:08.4]} 26. Bf6+ {[%clk 0:00:11.4]}
26... Kf7 {[%clk 0:01:08.6]} 27. Rd1 {[%clk 0:00:11.5]} 27... Re8 {[%clk
0:00:51.8]} 28. Qf2 {[%clk 0:00:11]} 28... Qg4 {[%clk 0:00:49.7]} 29. Rd2 {[%clk
0:00:10.3]} 29... Re6 {[%clk 0:00:40.1]} 30. Qf1 {[%clk 0:00:10]} 30... f4
{[%clk 0:00:28.2]} 31. Qb5 {[%clk 0:00:09.6]} 31... Qf5 {[%clk 0:00:19.8]} 32.
Rd7+ {[%clk 0:00:06.1]} 32... Nxd7 {[%clk 0:00:05.9]} 33. Qxd7+ {[%clk
0:00:06.2]} 33... Kf8 {[%clk 0:00:06.3]} 34. Qd8+ {[%clk 0:00:03.5]} 34... Re8
{[%clk 0:00:04.8]} 35. Qd6+ {[%clk 0:00:03.5]} 35... Kg8 {[%clk 0:00:04]} 36.
Qd5+ {[%clk 0:00:03.9]} 36... Qe6 {[%clk 0:00:04.3]} 37. Qf3 {[%clk 0:00:03.6]}
37... Qf5 {[%clk 0:00:03.1]} 38. Qd5+ {[%clk 0:00:02]} 38... Qe6 {[%clk
0:00:03.1]} 39. Qf3 {[%clk 0:00:02.4]} 39... g5 {[%clk 0:00:03.6]} 40. g3 {[%clk
0:00:02]} 40... Qf5 {[%clk 0:00:03.8]} 41. gxf4 {[%clk 0:00:02]} 41... Qxf4
{[%clk 0:00:04.2]} 42. Qd5+ {[%clk 0:00:01.4]} 42... Kh7 {[%clk 0:00:04.4]} 43.
Qd7+ {[%clk 0:00:01.6]} 43... Kh6 {[%clk 0:00:03.8]} 44. Qg7+ {[%clk 0:00:01.9]}
44... Kh5 {[%clk 0:00:04]} 45. Qf7+ {[%clk 0:00:01.6]} 45... Kg4 {[%clk
0:00:04.5]} 46. Qxe8 {[%clk 0:00:01.8]} 46... Qe3+ {[%clk 0:00:04.2]} 47. Kf1
{[%clk 0:00:01.5]} 47... Qf3+ {[%clk 0:00:04.5]} 48. Ke1 {[%clk 0:00:01.6]}
48... Qxc3+ {[%clk 0:00:04.9]} 49. Kf1 {[%clk 0:00:01.8]} 49... Qd3+ {[%clk
0:00:04.7]} 50. Ke1 {[%clk 0:00:02.3]} 50... Qe4+ {[%clk 0:00:03.1]} 51. Kf1
{[%clk 0:00:02.6]} 51... Qf5+ {[%clk 0:00:02.2]} 52. Ke1 {[%clk 0:00:02.9]}
52... Qe4+ {[%clk 0:00:02.6]} 53. Kf1 {[%clk 0:00:03.3]} 53... Qf3+ {[%clk
0:00:02.9]} 54. Kg1 {[%clk 0:00:03.5]} 54... Qe3+ {[%clk 0:00:02.6]} 55. Kf1
{[%clk 0:00:03.9]} 55... Qf3+ {[%clk 0:00:02.9]} 56. Kg1 {[%clk 0:00:04.3]}
56... Qd1+ {[%clk 0:00:00.8]} 57. Kf2 {[%clk 0:00:04.5]} 57... Qd2+ {[%clk
0:00:01.7]} 58. Kf1 {[%clk 0:00:04.9]} 58... Qd3+ {[%clk 0:00:02.5]} 59. Kf2
{[%clk 0:00:05.2]} 59... Qd2+ {[%clk 0:00:02.9]} 60. Kf1 {[%clk 0:00:05.7]}
60... Qd3+ {[%clk 0:00:03.7]} 1/2-1/2

[Event "Early-Titled-Tuesday-Blitz-May-14-2024"]
[Site "Chess.com"]
[Date "2024.05.14"]
[Round "6"]
[White "crescentmoon2411"]
[Black "vugarrasulov"]
[Result "1/2-1/2"]
[WhiteElo "2857"]
[BlackElo "2989"]
[TimeControl "180+1"]
[EndTime "9:09:48 PDT"]
[Termination "Game drawn by repetition"]

1. d4 {[%clk 0:03:00.9]} 1... Nf6 {[%clk 0:03:00.6]} 2. Nf3 {[%clk 0:03:00.8]}
2... e6 {[%clk 0:03:00.6]} 3. Bf4 {[%clk 0:03:00.9]} 3... d5 {[%clk 0:03:00.2]}
4. e3 {[%clk 0:03:01.2]} 4... Bd6 {[%clk 0:03:00.8]} 5. Nbd2 {[%clk 0:03:01.3]}
5... Nc6 {[%clk 0:03:01.3]} 6. Bb5 {[%clk 0:02:59.4]} 6... O-O {[%clk 0:03:01]}
7. O-O {[%clk 0:02:57.6]} 7... Bd7 {[%clk 0:02:56.8]} 8. Bg3 {[%clk 0:02:49]}
8... Ne4 {[%clk 0:02:49.7]} 9. Nxe4 {[%clk 0:02:42]} 9... dxe4 {[%clk
0:02:50.6]} 10. Bxc6 {[%clk 0:02:42.2]} 10... Bxc6 {[%clk 0:02:49.6]} 11. Ne5
{[%clk 0:02:40]} 11... Bb5 {[%clk 0:02:45.7]} 12. c4 {[%clk 0:02:23.2]} 12...
Bxe5 {[%clk 0:02:42.7]} 13. cxb5 {[%clk 0:02:22.8]} 13... Bxg3 {[%clk
0:02:42.2]} 14. hxg3 {[%clk 0:02:23.7]} 14... a6 {[%clk 0:02:40.9]} 15. Qb3
{[%clk 0:02:22.7]} 15... axb5 {[%clk 0:02:35.4]} 16. Qxb5 {[%clk 0:02:23.4]}
16... Qd5 {[%clk 0:02:36]} 17. Qb4 {[%clk 0:02:17]} 17... Ra6 {[%clk 0:02:25.4]}
18. Rfc1 {[%clk 0:02:10.6]} 18... Rb6 {[%clk 0:02:25.5]} 19. Qd2 {[%clk
0:02:01.6]} 19... c6 {[%clk 0:02:25.2]} 20. Rc5 {[%clk 0:01:59.6]} 20... Qd6
{[%clk 0:02:25.7]} 21. b4 {[%clk 0:01:50.5]} 21... Ra8 {[%clk 0:02:18.5]} 22. a4
{[%clk 0:01:49]} 22... Rba6 {[%clk 0:02:15.9]} 23. Qc2 {[%clk 0:01:42.6]} 23...
h6 {[%clk 0:02:07.5]} 24. a5 {[%clk 0:01:35.2]} 24... f5 {[%clk 0:01:47.1]} 25.
Qc4 {[%clk 0:01:27.2]} 25... Kh7 {[%clk 0:01:44.6]} 26. Rb1 {[%clk 0:01:16.2]}
26... Re8 {[%clk 0:01:42.6]} 27. Re5 {[%clk 0:00:58.5]} 27... Raa8 {[%clk
0:01:42.6]} 28. Qc5 {[%clk 0:00:53.5]} 28... Qd7 {[%clk 0:01:38.9]} 29. b5
{[%clk 0:00:49]} 29... cxb5 {[%clk 0:01:26.2]} 30. Qxb5 {[%clk 0:00:49.9]} 30...
Qxb5 {[%clk 0:01:26.4]} 31. Rbxb5 {[%clk 0:00:46.2]} 31... Ra7 {[%clk
0:01:18.8]} 32. d5 {[%clk 0:00:43]} 32... g6 {[%clk 0:01:05.1]} 33. Rxe6 {[%clk
0:00:32.8]} 33... Rxe6 {[%clk 0:01:04.8]} 34. dxe6 {[%clk 0:00:33.7]} 34... Kg7
{[%clk 0:01:05.5]} 35. e7 {[%clk 0:00:25.3]} 35... Kf7 {[%clk 0:01:05.5]} 36.
Re5 {[%clk 0:00:20.8]} 36... Ra8 {[%clk 0:01:05.6]} 37. g4 {[%clk 0:00:15.8]}
37... fxg4 {[%clk 0:01:01.8]} 38. Rxe4 {[%clk 0:00:15.7]} 38... h5 {[%clk
0:01:02.5]} 39. Rb4 {[%clk 0:00:14.6]} 39... Rxa5 {[%clk 0:00:54.7]} 40. Rxb7
{[%clk 0:00:14.8]} 40... Re5 {[%clk 0:00:55.3]} 41. Kh2 {[%clk 0:00:12.7]} 41...
Rxe7 {[%clk 0:00:53.7]} 42. Rb6 {[%clk 0:00:11.6]} 42... Re6 {[%clk 0:00:50.4]}
43. Rb5 {[%clk 0:00:12]} 43... Kf6 {[%clk 0:00:45.3]} 44. Kg3 {[%clk 0:00:12.6]}
44... Rc6 {[%clk 0:00:45.8]} 45. Ra5 {[%clk 0:00:07.3]} 45... Rb6 {[%clk
0:00:45.9]} 46. Rc5 {[%clk 0:00:07.1]} 46... Ra6 {[%clk 0:00:45.6]} 47. e4
{[%clk 0:00:06.4]} 47... Ra4 {[%clk 0:00:36.2]} 48. f3 {[%clk 0:00:05.7]} 48...
gxf3 {[%clk 0:00:34.8]} 49. gxf3 {[%clk 0:00:06.6]} 49... Ra3 {[%clk 0:00:31.1]}
50. Rc6+ {[%clk 0:00:05.3]} 50... Kg5 {[%clk 0:00:30.4]} 51. Rc5+ {[%clk
0:00:04.9]} 51... Kf6 {[%clk 0:00:30.7]} 52. Rc6+ {[%clk 0:00:05.1]} 52... Kg5
{[%clk 0:00:31.1]} 53. Rc5+ {[%clk 0:00:05.8]} 53... Kh6 {[%clk 0:00:30.9]} 54.
Rc6 {[%clk 0:00:06.1]} 54... Ra1 {[%clk 0:00:29.6]} 55. Rb6 {[%clk 0:00:06.2]}
55... Rg1+ {[%clk 0:00:29.4]} 56. Kf2 {[%clk 0:00:06.5]} 56... Rc1 {[%clk
0:00:27.1]} 57. f4 {[%clk 0:00:06.2]} 57... Rc2+ {[%clk 0:00:22.7]} 58. Kf3
{[%clk 0:00:06.4]} 58... Rc3+ {[%clk 0:00:23.1]} 59. Kf2 {[%clk 0:00:06.7]}
59... Rc2+ {[%clk 0:00:14.1]} 60. Kf3 {[%clk 0:00:07.1]} 60... Rc3+ {[%clk
0:00:14.4]} 61. Kf2 {[%clk 0:00:07.7]} 61... Rc4 {[%clk 0:00:13.3]} 62. Kf3
{[%clk 0:00:07.7]} 62... Rc3+ {[%clk 0:00:10.5]} 1/2-1/2

[Event "Early-Titled-Tuesday-Blitz-May-14-2024"]
[Site "Chess.com"]
[Date "2024.05.14"]
[Round "6"]
[White "Orest_Vovk"]
[Black "Journey_to_GrandMaster_YT"]
[Result "0-1"]
[WhiteElo "2660"]
[BlackElo "2568"]
[TimeControl "180+1"]
[EndTime "9:09:48 PDT"]
[Termination "Journey_to_GrandMaster_YT won on time"]

1. h4 {[%clk 0:02:51.1]} 1... d6 {[%clk 0:03:00.9]} 2. h5 {[%clk 0:02:50.2]}
2... h6 {[%clk 0:02:59.5]} 3. Nc3 {[%clk 0:02:49.7]} 3... e5 {[%clk 0:02:59.6]}
4. d4 {[%clk 0:02:47.4]} 4... Nf6 {[%clk 0:02:58]} 5. dxe5 {[%clk 0:02:47.1]}
5... dxe5 {[%clk 0:02:58.9]} 6. Qxd8+ {[%clk 0:02:47.1]} 6... Kxd8 {[%clk
0:02:59.8]} 7. Nf3 {[%clk 0:02:46.9]} 7... Bd6 {[%clk 0:02:59]} 8. Be3 {[%clk
0:02:37]} 8... c6 {[%clk 0:02:58.3]} 9. O-O-O {[%clk 0:02:36.8]} 9... Ke7 {[%clk
0:02:58.1]} 10. Nd2 {[%clk 0:02:25]} 10... Ng4 {[%clk 0:02:31.2]} 11. Nc4 {[%clk
0:02:14.7]} 11... Nxe3 {[%clk 0:02:29.9]} 12. Nxe3 {[%clk 0:02:10.6]} 12... Be6
{[%clk 0:02:28.7]} 13. g4 {[%clk 0:02:02.8]} 13... Bc5 {[%clk 0:02:24.6]} 14.
Rh3 {[%clk 0:01:59.6]} 14... Nd7 {[%clk 0:02:19.2]} 15. Nf5+ {[%clk 0:01:43.3]}
15... Bxf5 {[%clk 0:02:17.1]} 16. gxf5 {[%clk 0:01:44.2]} 16... Bxf2 {[%clk
0:02:14.3]} 17. e3 {[%clk 0:01:37.4]} 17... Nf6 {[%clk 0:01:57.5]} 18. Kd2
{[%clk 0:01:31.5]} 18... Ng4 {[%clk 0:01:37.7]} 19. Ke2 {[%clk 0:01:20.3]} 19...
Nxe3 {[%clk 0:01:06.8]} 20. Rxe3 {[%clk 0:01:17]} 20... Bxe3 {[%clk 0:01:06.6]}
21. Kxe3 {[%clk 0:01:17.9]} 21... Rad8 {[%clk 0:01:06.2]} 22. Bd3 {[%clk
0:01:17.8]} 22... Rd4 {[%clk 0:01:05.3]} 23. Ne4 {[%clk 0:01:15.4]} 23... Rhd8
{[%clk 0:00:52.1]} 24. Rg1 {[%clk 0:01:12.8]} 24... Kf8 {[%clk 0:00:51.7]} 25.
b3 {[%clk 0:01:04.7]} 25... b6 {[%clk 0:00:48.5]} 26. a4 {[%clk 0:01:04.1]}
26... f6 {[%clk 0:00:44.5]} 27. Bc4 {[%clk 0:00:42.4]} 27... Rd1 {[%clk
0:00:41.6]} 28. Rxd1 {[%clk 0:00:28.4]} 28... Rxd1 {[%clk 0:00:42.5]} 29. Bd3
{[%clk 0:00:24.4]} 29... Ke7 {[%clk 0:00:41.5]} 30. Ke2 {[%clk 0:00:19.7]} 30...
Rh1 {[%clk 0:00:41]} 31. Ng3 {[%clk 0:00:19.6]} 31... Rh2+ {[%clk 0:00:39.4]}
32. Kf3 {[%clk 0:00:20]} 32... Rd2 {[%clk 0:00:30.6]} 33. Ne2 {[%clk 0:00:16.1]}
33... Rd1 {[%clk 0:00:30]} 34. Kf2 {[%clk 0:00:15.6]} 34... Rh1 {[%clk
0:00:29.4]} 35. Ng3 {[%clk 0:00:15.6]} 35... Ra1 {[%clk 0:00:26.5]} 36. Nf1
{[%clk 0:00:14]} 36... Kd6 {[%clk 0:00:23.8]} 37. Ke3 {[%clk 0:00:12.6]} 37...
Re1+ {[%clk 0:00:21.5]} 38. Kd2 {[%clk 0:00:07.5]} 38... Ra1 {[%clk 0:00:21.9]}
39. Ng3 {[%clk 0:00:05.3]} 39... Rg1 {[%clk 0:00:20.7]} 40. Ne4+ {[%clk
0:00:05.1]} 40... Ke7 {[%clk 0:00:21.1]} 41. Be2 {[%clk 0:00:01.9]} 41... Rh1
{[%clk 0:00:19.5]} 42. Ke3 {[%clk 0:00:02.4]} 42... Rh3+ {[%clk 0:00:16.9]} 43.
Bf3 {[%clk 0:00:02.7]} 43... Rh2 {[%clk 0:00:17.4]} 44. Nf2 {[%clk 0:00:03]}
44... Kd6 {[%clk 0:00:16.8]} 45. Ke2 {[%clk 0:00:03.4]} 45... Kc5 {[%clk
0:00:15.7]} 46. Kf1 {[%clk 0:00:03.6]} 46... b5 {[%clk 0:00:14.7]} 47. Kg1
{[%clk 0:00:03]} 47... Rh4 {[%clk 0:00:14.8]} 48. axb5 {[%clk 0:00:03]} 48...
cxb5 {[%clk 0:00:15]} 49. Ne4+ {[%clk 0:00:02.8]} 49... Kd4 {[%clk 0:00:14.9]}
50. Nd6 {[%clk 0:00:01.1]} 50... b4 {[%clk 0:00:14.8]} 51. Nb5+ {[%clk
0:00:00.9]} 51... Ke3 {[%clk 0:00:14.5]} 52. Bg2 {[%clk 0:00:01.8]} 52... Kd2
{[%clk 0:00:13.7]} 53. Nxa7 {[%clk 0:00:01.9]} 53... Kxc2 {[%clk 0:00:13.8]} 54.
Nc6 {[%clk 0:00:02.8]} 54... Kxb3 {[%clk 0:00:13.5]} 55. Nd8 {[%clk 0:00:03]}
55... Rxh5 {[%clk 0:00:13]} 56. Ne6 {[%clk 0:00:02.9]} 56... Rxf5 {[%clk
0:00:13.2]} 57. Nxg7 {[%clk 0:00:03.6]} 57... Rg5 {[%clk 0:00:13.2]} 58. Ne6
{[%clk 0:00:03.2]} 58... Rxg2+ {[%clk 0:00:10.9]} 59. Kxg2 {[%clk 0:00:03.6]}
59... Ka2 {[%clk 0:00:10.8]} 60. Nc5 {[%clk 0:00:01.2]} 60... b3 {[%clk
0:00:11.4]} 61. Ne4 {[%clk 0:00:00.9]} 61... b2 {[%clk 0:00:11.9]} 62. Nc3+
{[%clk 0:00:01.2]} 62... Kb3 {[%clk 0:00:12.3]} 63. Nb1 {[%clk 0:00:00.8]} 63...
Kc2 {[%clk 0:00:13]} 64. Na3+ {[%clk 0:00:01.2]} 64... Kc1 {[%clk 0:00:13.3]}
0-1